{"text_format":"1","workbook":"xlsx","n_sheets":2,"sheets":["сводная таблица","данные"],"not_rendered":{"charts":0,"images":0,"macros":1,"external_links":0,"defined_names":1,"comments":0,"pivot_tables":1},"unopened":[],"bounds":{"document_bytes":16777216,"sheet_cells":100000,"rows_first":2000,"rows_last":500,"rows_between":2000,"halvings":0,"cell_chars":16384,"cell_head_chars":4096},"cells_cut":0,"cells_raw":0,"read":"whole","date_system":"1900"}

{"sheet":"сводная таблица","index":0,"n_rows":40,"n_cols":33,"rows_kept":40,"cut":false,"hidden":false,"merged":[[8,17,9,17],[8,8,9,8],[8,9,9,9],[8,10,9,10],[8,11,8,14],[8,15,9,15],[8,16,9,16]]}
[null,"ОБНОВИТЬ"]
[]
["дата","(Все)"]
[]
["Названия строк","Количество по полю событие"]
["праздник",2]
["ровно",2]
["траур",1,null,null,null,null,null,null,null,null,null,"сентябрь",2014]
["Общий итог",5,null,null,null,null,null,null,"дата","Дежурный №1","Пом. Дежурного",null,null,null,null,"ответственные","Дежурный №2","Пом.Дежурного"]
[null,null,null,null,null,null,null,null,null,null,null,3,4,5,5,null,null,null,null,null,null,"дежурный №1","Ранг","список фамилий дежурных",null,"Дежурный №2","Ранг","Список фамилий дежурных",null,null,"январь",{"$f":"TODAY()","v":"2014-09-06"},2014]
[null,null,null,null,null,null,null,null,"1\n",{"$f":"INDEX($X$11:$X$40,W11)","v":"англнш"},null,null,null,null,null,null,{"$f":"INDEX($AB$11:$AB$40,AA11)","v":"QWFHJIK"},null,null,null,null,{"$f":"RAND()","v":6.7132815702932502E-2},{"$f":"RANK(V11,$V$11:$V$40)","v":30},"Колотун",null,{"$f":"RAND()","v":0.63200893223363352},{"$f":"RANK(Z11,$Z$11:$Z$40)","v":14},"QWER",null,null,"февраль",{"$f":"MONTH(AF10)","v":9},2015]
[null,null,null,null,null,null,null,null,2,{"$f":"INDEX($X$11:$X$40,W12)","v":"Колотун"},null,null,null,null,null,null,{"$f":"INDEX($AB$11:$AB$40,AA12)","v":"HGFJHG"},null,null,null,null,{"$f":"RAND()","v":0.97365701004282501},{"$f":"RANK(V12,$V$11:$V$40)","v":1},"Коля",null,{"$f":"RAND()","v":0.39040277954888691},{"$f":"RANK(Z12,$Z$11:$Z$40)","v":20},"POIU",null,null,"март",{"$f":"YEAR(AF10)","v":2014},2016]
[null,null,null,null,null,null,null,null,3,"нкглгеш",null,null,null,null,null,null,"OOK",null,null,null,null,0.27863682995933492,24,"Наташа",null,0.58787773711780733,17,"CVBN",null,null,"апрель",null,2017]
[null,null,null,null,null,null,null,null,4,"апореро",null,null,null,null,null,null,"CFHJK",null,null,null,null,0.57295105752658904,14,"Игорь",null,0.2726989874662934,24,"ADGFH",null,null,"май",null,2018]
[null,null,null,null,null,null,null,null,5,"глнк",null,null,null,null,null,null,"UILSDGH",null,null,null,null,0.10036568504687826,29,"Зевс",null,0.76528051509001971,6,"LNRY",null,null,"июнь",null,2019]
[null,null,null,null,null,null,null,null,6,"веголнг",null,null,null,null,null,null,"NGJJG",null,null,null,null,0.40854843394932661,20,"Перун",null,0.3625566273630404,21,"UILSDGH",null,null,"июль",null,2020]
[null,null,null,null,null,null,null,null,7,"Коля",null,null,null,null,null,null,"FGF",null,null,null,null,0.95930624324552105,2,"Колотун",null,0.67532770927201868,12,"FFA",null,null,"август",null,2021]
[null,null,null,null,null,null,null,null,8,"нкглнеш",null,null,null,null,null,null,"JMI",null,null,null,null,0.25303403095506694,25,"Злодей",null,0.31968309627103275,23,"GHJYJMJKKU",null,null,"сентябрь",null,2022]
[null,null,null,null,null,null,null,null,9,"Гей",null,null,null,null,null,null,"DDF",null,null,null,null,0.7623660025452077,9,"Гей",null,0.60725096217941987,15,"DFBGFH",null,null,"октябрь",null,2023]
[null,null,null,null,null,null,null,null,10,"кнлгнкш",null,null,null,null,null,null,"BBHMM",null,null,null,null,0.2019196645849124,26,"Мудей",null,0.13388716105766751,28,"BGF",null,null,"ноябрь",null,2024]
[null,null,null,null,null,null,null,null,11,"Злодей",null,null,null,null,null,null,"GHJJG",null,null,null,null,0.8054630118285816,8,"Проба",null,1.5189578945304816E-2,30,"HMNJMJJKK",null,null,"декабрь",null,2025]
[null,null,null,null,null,null,null,null,12,"Проба",null,null,null,null,null,null,"CVBN",null,null,null,null,0.6920775583477643,11,"Китайка",null,0.93510060117259153,3,"FGF"]
[null,null,null,null,null,null,null,null,13,"анлгнк",null,null,null,null,null,null,"HNJ",null,null,null,null,0.13059059888047175,28,"Шлёп",null,0.53025995016199912,18,"SDSGSFHFH"]
[null,null,null,null,null,null,null,null,14,"Колотун",null,null,null,null,null,null,"FGB",null,null,null,null,0.81753780596991488,7,"апореро",null,0.34100645935552598,22,"QWFHJIK"]
[null,null,null,null,null,null,null,null,15,"впрове",null,null,null,null,null,null,"ADGFH",null,null,null,null,0.51305121514497365,15,"впрове",null,0.85847806704268215,4,"DDF"]
[null,null,null,null,null,null,null,null,16,"Шлёп",null,null,null,null,null,null,"DFBGFH",null,null,null,null,0.65184939994056124,13,"врогер",null,0.73383355991712595,9,"JIU"]
[null,null,null,null,null,null,null,null,17,"Мудей",null,null,null,null,null,null,"HMNJMJJKK",null,null,null,null,0.70589851626556077,10,"лдщщг",null,0.68141376688986566,11,"OOK"]
[null,null,null,null,null,null,null,null,18,"влнг",null,null,null,null,null,null,"FFA",null,null,null,null,0.29927849382739458,21,"веонвегл",null,0.75006480376076967,7,"HNJ"]
[null,null,null,null,null,null,null,null,19,"лдщщг",null,null,null,null,null,null,"POIU",null,null,null,null,0.44292859949392194,17,"вешлонгл",null,0.95456899776644388,2,"HJIKKK,"]
[null,null,null,null,null,null,null,null,20,"Наташа",null,null,null,null,null,null,"HJIKKK,",null,null,null,null,0.88783144461669661,3,"веголнг",null,0.45391163608985752,19,"HGFJHG"]
[null,null,null,null,null,null,null,null,21,"Китайка",null,null,null,null,null,null,"VNMJHB",null,null,null,null,0.67059464136245384,12,"влнг",null,0.15529951816626963,27,"NGJJG"]
[null,null,null,null,null,null,null,null,22,"Игорь",null,null,null,null,null,null,"LNRY",null,null,null,null,0.86922609333699441,4,"веолкнг",null,0.79528743320128659,5,"FGB"]
[null,null,null,null,null,null,null,null,23,"кгнлкшн",null,null,null,null,null,null,"GHJYJMJKKU",null,null,null,null,0.18677030417037821,27,"веолнг",null,0.74643708779003859,8,"JMI"]
[null,null,null,null,null,null,null,null,24,"Зевс",null,null,null,null,null,null,"JIU",null,null,null,null,0.84628366471770544,5,"нкглгеш",null,0.60142985945541227,16,"CFHJK"]
[null,null,null,null,null,null,null,null,25,"вешлонгл",null,null,null,null,null,null,"QWER",null,null,null,null,0.43326235374346522,19,"нкглнеш",null,0.98784305949081996,1,"CGBNMMMKHF"]
[null,null,null,null,null,null,null,null,26,"врогер",null,null,null,null,null,null,"BGF",null,null,null,null,0.45382820781668765,16,"кнлгнкш",null,0.73235267066516252,10,"VBNMJ"]
[null,null,null,null,null,null,null,null,27,"веолкнг",null,null,null,null,null,null,"VVBN ",null,null,null,null,0.28659770467223622,22,"кгнлкшн",null,7.8065015209108801E-2,29,"VNMJHB"]
[null,null,null,null,null,null,null,null,28,"Перун",null,null,null,null,null,null,"SDSGSFHFH",null,null,null,null,0.82406431252987788,6,"анлгнк",null,0.65718920375084278,13,"BBHMM"]
[null,null,null,null,null,null,null,null,29,"веолнг",null,null,null,null,null,null,"CGBNMMMKHF",null,null,null,null,0.28564331327880643,23,"глнк",null,0.1739684075436001,25,"VVBN "]
[null,null,null,null,null,null,null,null,30,"веонвегл",null,null,null,null,null,null,"VBNMJ",null,null,null,null,0.4425951123722619,18,"англнш",null,0.16499986513272202,26,"GHJJG"]

{"sheet":"данные","index":1,"n_rows":13,"n_cols":3,"rows_kept":13,"cut":false,"hidden":false,"merged":[]}
[]
[]
[]
[]
[]
[]
[]
[null,"дата","событие"]
[null,"2010-05-02","праздник"]
[null,"2010-02-01","праздник"]
[null,"2010-03-02","траур"]
[null,"2010-03-02","ровно"]
[null,"2010-04-04","ровно"]